fUST/lending_fUST_20240324
["ID","MTS","AMOUNT","RATE_DAILY","PERIOD"]
[320230595,1711221033324,-12791.76,0.00024819,2]
[320230597,1711221033333,-151.0,0.00024819,2]
[320230598,1711221033342,-151.0,0.00024819,2]
[320230599,1711221033351,-151.0,0.00024819,2]
[320230600,1711221033360,-832.6,0.00024819,2]
[320230601,1711221033369,-500.0,0.00024819,2]
[320230603,1711221033383,-2667.34,0.00024819,2]
[320230605,1711221033392,-151.0,0.00024819,2]
[320230607,1711221033401,-151.0,0.00024819,2]
[320230609,1711221033410,-151.0,0.00024819,2]
[320230611,1711221033421,-151.0,0.00024819,2]
[320230613,1711221033431,-151.0,0.00024819,2]
[320230615,1711221033440,-166.056157,0.00024819,2]
[320230617,1711221033449,-151.0,0.00024819,2]
[320230619,1711221033460,-285.192366,0.00024819,2]
[320230621,1711221033471,-1097.49202156,0.00024819,2]
[320230780,1711221038631,-3443.79999999,0.00024819,2]
[320230781,1711221038686,-699.11797845,0.00024819,2]
[320230782,1711221038697,-500.0,0.00024819,2]
[320230783,1711221038706,-500.0,0.00024819,2]
[320230784,1711221038715,-500.0,0.00024819,2]
[320230787,1711221038725,-500.0,0.00024819,2]
[320230789,1711221038734,-540.37427772,0.00024819,2]
[320230790,1711221038744,-1242.06,0.00024819,2]
[320230791,1711221038753,-356.83331018,0.00024819,2]
[320230792,1711221038764,-2546.38,0.00024819,2]
[320230793,1711221038773,-500.0,0.00024819,2]
[320230794,1711221038782,-500.0,0.00024819,2]
[320230795,1711221038792,-500.0,0.00024819,2]
[320230796,1711221038801,-500.0,0.00024819,2]
[320230797,1711221038810,-500.0,0.00024819,2]
[320230798,1711221038820,-500.0,0.00024819,2]
[320230799,1711221038829,-1345.1,0.00024819,2]
[320230800,1711221038839,-1526.13,0.00024819,2]
[320230801,1711221038848,-1419.65,0.00024819,2]
[320230802,1711221038857,-990.53,0.00024819,2]
[320230803,1711221038867,-500.0,0.00024819,2]
[320230804,1711221038876,-500.0,0.00024819,2]
[320230805,1711221038885,-3522.5,0.00024819,2]
[320230806,1711221038894,-500.0,0.00024819,2]
[320230807,1711221038903,-357.95312038,0.00024819,2]
[320230808,1711221038913,-207.56156145,0.00024819,2]
[320230809,1711221038923,-500.0,0.00024819,2]
[320230810,1711221038932,-500.0,0.00024819,2]
[320230811,1711221038941,-1324.8,0.00024819,2]
[320230812,1711221038950,-500.0,0.00024819,2]
[320230813,1711221038960,-500.0,0.00024819,2]
[320230814,1711221038969,-500.0,0.00024819,2]
[320230815,1711221038978,-502.18802314,0.00024819,2]
[320230816,1711221038988,-500.0,0.00024819,2]
[320230817,1711221038998,-509.22338841,0.00024819,2]
[320230818,1711221039007,-500.0,0.00024819,2]
[320230819,1711221039017,-500.0,0.00024819,2]
[320230820,1711221039026,-500.0,0.00024819,2]
[320230821,1711221039035,-2728.050658,0.00024819,2]
[320230822,1711221039045,-2728.050658,0.00024819,2]
[320230823,1711221039054,-2728.050658,0.00024819,2]
[320230824,1711221039063,-500.0,0.00024819,2]
[320230825,1711221039073,-2728.050658,0.00024819,2]
[320230826,1711221039082,-2728.050658,0.00024819,2]
[320230827,1711221039091,-2728.050658,0.00024819,2]
[320230828,1711221039101,-14289.52,0.00024819,2]
[320230829,1711221039110,-504.49874894,0.00024819,2]
[320230830,1711221039120,-1458.7,0.00024819,2]
[320230831,1711221039130,-500.0,0.00024819,2]
[320230832,1711221039140,-237.563436,0.00024819,2]
[320230833,1711221039149,-500.0,0.00024819,2]
[320230834,1711221039160,-237.563436,0.00024819,2]
[320230835,1711221039169,-237.563436,0.00024819,2]
[320230836,1711221039178,-237.563436,0.00024819,2]
[320230837,1711221039187,-237.563436,0.00024819,2]
[320230838,1711221039197,-500.0,0.00024819,2]
[320230839,1711221039206,-237.563436,0.00024819,2]
[320230840,1711221039216,-237.563436,0.00024819,2]
[320230841,1711221039226,-237.563436,0.00024819,2]
[320230842,1711221039235,-237.563436,0.00024819,2]
[320230843,1711221039244,-237.563436,0.00024819,2]
[320230844,1711221039254,-237.563436,0.00024819,2]
[320230845,1711221039264,-237.563436,0.00024819,2]
[320230846,1711221039273,-2709.909836,0.00024819,2]
[320230847,1711221039283,-2709.909836,0.00024819,2]
[320230848,1711221039293,-2709.909836,0.00024819,2]
[320230849,1711221039303,-2709.909836,0.00024819,2]
[320230850,1711221039314,-988.45,0.00024819,2]
[320230851,1711221039324,-2709.909836,0.00024819,2]
[320230852,1711221039333,-2709.909836,0.00024819,2]
[320230853,1711221039344,-2709.909836,0.00024819,2]
[320230854,1711221039507,-2709.909836,0.00024819,2]
[320230855,1711221039517,-2709.909836,0.00024819,2]
[320230856,1711221039525,-2709.909836,0.00024819,2]
[320230857,1711221039535,-2709.909836,0.00024819,2]
[320230858,1711221039545,-2709.909836,0.00024819,2]
[320230859,1711221039555,-3068.13,0.00024819,2]
[320230860,1711221039564,-500.0,0.00024819,2]
[320230861,1711221039574,-501.05560254,0.00024819,2]
[320230862,1711221039583,-722.55,0.00024819,2]
[320230863,1711221039593,-500.0,0.00024819,2]
[320230864,1711221039602,-151.0,0.00024819,2]
[320230865,1711221039612,-500.0,0.00024819,2]
[320230866,1711221039621,-500.0,0.00024819,2]
[320230867,1711221039630,-238.664823,0.00024819,2]
[320230868,1711221039639,-238.664823,0.00024819,2]
[320230869,1711221039648,-238.664823,0.00024819,2]
[320230870,1711221039657,-238.664823,0.00024819,2]
[320230871,1711221039668,-238.664823,0.00024819,2]
[320230872,1711221039677,-238.664823,0.00024819,2]
[320230873,1711221039686,-500.0,0.00024819,2]
[320230874,1711221039696,-238.664823,0.00024819,2]
[320230875,1711221039705,-500.0,0.00024819,2]
[320230876,1711221039714,-504.67255554,0.00024819,2]
[320230877,1711221039723,-238.664823,0.00024819,2]
[320230878,1711221039732,-238.664823,0.00024819,2]
[320230879,1711221039741,-238.664823,0.00024819,2]
[320230880,1711221039750,-238.664823,0.00024819,2]
[320230881,1711221039760,-238.664823,0.00024819,2]
[320230882,1711221039769,-1022.02,0.00024819,2]
[320230883,1711221039778,-500.0,0.00024819,2]
[320230884,1711221039787,-22417.73220577,0.0002482,3]
[320230885,1711221039797,-198790.84229852,0.0002482,2]
[320230900,1711221043737,-9763.0473303,0.0002482,2]
[320230926,1711221046762,-1332.47713589,0.0002482,2]
[320230927,1711221046774,-61443.04266528,0.0002482,2]
[320230928,1711221046820,-1771.33788813,0.0002482,2]
[320230931,1711221047001,-2249.75268188,0.0002482,2]
[320230932,1711221047011,-151.0,0.0002482,2]
[320230933,1711221047020,-151.0,0.0002482,2]
[320230934,1711221047029,-151.0,0.0002482,2]
[320230935,1711221047038,-151.0,0.0002482,2]
[320230936,1711221047047,-151.0,0.0002482,2]
[320230937,1711221047056,-151.0,0.0002482,2]
[320230938,1711221047066,-151.0,0.0002482,2]
[320230939,1711221047077,-151.0,0.0002482,2]
[320230940,1711221047086,-151.0,0.0002482,2]
[320230941,1711221047095,-2728.050658,0.0002482,2]
[320230942,1711221047106,-2728.050658,0.0002482,2]
[320230943,1711221047116,-2728.050658,0.0002482,2]
[320230944,1711221047126,-2728.050658,0.0002482,2]
[320230945,1711221047137,-161.99029719,0.0002482,2]
[320230946,1711221047150,-2566.06036081,0.0002482,2]
[320230947,1711221047161,-2728.050658,0.0002482,2]
[320230948,1711221047170,-237.563436,0.0002482,2]
[320230949,1711221047180,-237.563436,0.0002482,2]
[320230950,1711221047189,-237.563436,0.0002482,2]
[320230951,1711221047198,-237.563436,0.0002482,2]
[320230952,1711221047207,-237.563436,0.0002482,2]
[320230953,1711221047217,-237.563436,0.0002482,2]
[320230954,1711221047227,-2709.909836,0.0002482,2]
[320230955,1711221047237,-2709.909836,0.0002482,2]
[320230956,1711221047248,-2709.909836,0.0002482,2]
[320230957,1711221047257,-2709.909836,0.0002482,2]
[320230958,1711221047267,-2709.909836,0.0002482,2]
[320230959,1711221047276,-2709.909836,0.0002482,2]
[320230960,1711221047285,-238.664823,0.0002482,2]
[320230961,1711221047294,-238.664823,0.0002482,2]
[320230962,1711221047303,-238.664823,0.0002482,2]
[320230963,1711221047312,-238.664823,0.0002482,2]
[320230964,1711221047322,-238.664823,0.0002482,2]
[320230965,1711221047331,-238.664823,0.0002482,2]
[320230966,1711221047341,-425.27888261,0.00024866,2]
[320230967,1711221047351,-2582.56520433,0.0002488,2]
[320230973,1711221104291,3630.76425013,0.0002,5]
[320230974,1711221104325,6374.41294576,0.0002,5]
[320231070,1711222231867,-214.6895479,0.00021992,2]
[320231072,1711222231877,-405.49788746,0.00021993,2]
[320231074,1711222231887,-105.45694612,0.00021994,2]
[320231076,1711222231899,-104.76770614,0.00021994,2]
[320231077,1711222231908,-542.77403917,0.00022,2]
[320231078,1711222231918,-7755.00362505,0.00024,2]
[320231079,1711222231927,-455.21785889,0.0002455,2]
[320231081,1711222231937,-162.38966315,0.00024618,2]
[320231083,1711222231946,-325.96280583,0.0002465,5]
[320231084,1711222231955,-166.666666,0.00024658,2]
[320231085,1711222231964,-162.38966315,0.00024669,2]
[320231086,1711222231975,-880.83,0.00024717,2]
[320231087,1711222231985,-500.0,0.00024718,2]
[320231088,1711222231995,-501.77257608,0.00024718,2]
[320231089,1711222232005,-500.0,0.00024718,2]
[320231090,1711222232015,-500.0,0.00024718,2]
[320231091,1711222232025,-500.0,0.00024718,2]
[320231092,1711222232034,-500.0,0.00024718,2]
[320231093,1711222232208,-500.0,0.00024718,2]
[320231094,1711222232219,-501.82501478,0.00024718,2]
[320231095,1711222232230,-503.45852666,0.00024718,2]
[320231096,1711222232240,-508.3243376,0.00024718,2]
[320231097,1711222232251,-500.0,0.00024718,2]
[320231098,1711222232261,-500.0,0.00024718,2]
[320231099,1711222232271,-605.25578389,0.00024718,2]
[320231100,1711222232280,-502.04456082,0.00024718,2]
[320231101,1711222232290,-502.49393705,0.00024718,2]
[320231102,1711222232300,-211.77296455,0.00024718,2]
[320231103,1711222232310,-501.41367134,0.00024718,2]
[320231104,1711222232321,-500.0,0.00024718,2]
[320231105,1711222232331,-500.0,0.00024718,2]
[320231106,1711222232341,-1001.01241627,0.00024718,2]
[320231107,1711222232351,-501.49346272,0.00024718,2]
[320231108,1711222232361,-500.0,0.00024718,2]
[320231109,1711222232371,-500.0,0.00024718,2]
[320231110,1711222232382,-501.58597742,0.00024718,2]
[320231111,1711222232392,-500.0,0.00024718,2]
[320231112,1711222232402,-500.0,0.00024718,2]
[320231114,1711222232412,-500.0,0.00024718,2]
[320231116,1711222232421,-500.0,0.00024718,2]
[320231118,1711222232430,-500.0,0.00024718,2]
[320231120,1711222232439,-500.0,0.00024718,2]
[320231122,1711222232448,-500.0,0.00024718,2]
[320231124,1711222232458,-500.0,0.00024718,2]
[320231126,1711222232467,-500.0,0.00024718,2]
[320231128,1711222232477,-500.0,0.00024718,2]
[320231130,1711222232488,-505.15792779,0.00024718,2]
[320231132,1711222232498,-500.0,0.00024718,2]
[320231134,1711222232507,-500.0,0.00024718,2]
[320231136,1711222232518,-500.0,0.00024718,2]
[320231138,1711222232528,-151.0,0.00024718,2]
[320231140,1711222232538,-500.0,0.00024718,2]
[320231141,1711222232548,-2940.29,0.00024718,2]
[320231143,1711222232558,-387.10089003,0.00024718,2]
[320231146,1711222232574,-112.89910997,0.00024718,2]
[320231148,1711222232583,-500.0,0.00024718,2]
[320231150,1711222232593,-500.0,0.00024718,2]
[320231152,1711222232602,-501.79521297,0.00024718,2]
[320231154,1711222232611,-500.0,0.00024718,2]
[320231156,1711222232621,-501.61938209,0.00024718,2]
[320231158,1711222232631,-500.0,0.00024718,2]
[320231160,1711222232640,-501.00340779,0.00024718,2]
[320231162,1711222232650,-500.0,0.00024718,2]
[320231164,1711222232660,-503.0629103,0.00024718,2]
[320231166,1711222232670,-500.0,0.00024718,2]
[320231168,1711222232680,-500.0,0.00024718,2]
[320231170,1711222232691,-500.0,0.00024718,2]
[320231172,1711222232701,-2662.37,0.00024718,2]
[320231174,1711222232711,-2523.01,0.00024718,2]
[320231176,1711222232721,-536.46862524,0.00024718,2]
[320231178,1711222232731,-500.0,0.00024718,2]
[320231180,1711222232743,-500.0,0.00024718,2]
[320231182,1711222232755,-500.0,0.00024718,2]
[320231184,1711222232765,-500.0,0.00024718,2]
[320231185,1711222232776,-500.0,0.00024718,2]
[320231186,1711222232786,-10421.14,0.00024718,2]
[320231187,1711222232796,-501.22014101,0.00024718,2]
[320231188,1711222232805,-959.99,0.00024718,2]
[320231189,1711222232816,-330.2,0.00024718,2]
[320231190,1711222232825,-500.0,0.00024718,2]
[320231191,1711222232837,-3375.72,0.00024718,2]
[320231193,1711222232847,-504.20068042,0.00024718,2]
[320231194,1711222232856,-500.0,0.00024718,2]
[320231195,1711222232865,-1269.6,0.00024718,2]
[320231197,1711222232876,-1462.54,0.00024718,2]
[320231198,1711222232885,-1190.31,0.00024718,2]
[320231199,1711222232895,-1360.5,0.00024718,2]
[320231200,1711222232904,-548.06864197,0.00024718,2]
[320231202,1711222232914,-500.0,0.00024718,2]
[320231204,1711222232923,-500.0,0.00024718,2]
[320231206,1711222232933,-661.61,0.00024718,2]
[320231208,1711222232943,-154.84515485,0.00024718,2]
[320231210,1711222232952,-500.0,0.00024718,2]
[320231212,1711222232962,-500.4936987,0.00024718,2]
[320231214,1711222232973,-500.0,0.00024718,2]
[320231215,1711222232982,-629.39,0.00024718,2]
[320231216,1711222232992,-500.0,0.00024718,2]
[320231217,1711222233001,-947.26,0.00024718,2]
[320231218,1711222233011,-1289.05,0.00024718,2]
[320231219,1711222233020,-500.0,0.00024718,2]
[320231220,1711222233029,-500.0,0.00024718,2]
[320231221,1711222233038,-536.99,0.00024718,2]
[320231222,1711222233046,-501.72916582,0.00024718,2]
[320231223,1711222233055,-500.0,0.00024718,2]
[320231224,1711222233064,-2176.91027886,0.00024718,2]
[320231233,1711222237890,-5269.8,0.00021999,2]
[320231234,1711222237902,-271.20282732,0.00021999,2]
[320231235,1711222237912,-725.20831266,0.00024718,2]
[320231454,1711222240003,-251.39133245,0.00024718,2]
[320231461,1711222240061,-334.12007603,0.00024718,2]
[320231463,1711222240070,-136.37410092,0.00024718,2]
[320231984,1711222245988,-210.22465226,0.00024717,2]
[320231986,1711222245998,-363.62589908,0.00024718,2]
[320231988,1711222246008,-500.0,0.00024718,2]
[320231990,1711222246017,-500.0,0.00024718,2]
[320231992,1711222246027,-500.0,0.00024718,2]
[320231994,1711222246037,-500.0,0.00024718,2]
[320231996,1711222246046,-12814.93,0.00024718,2]
[320231998,1711222246055,-1397.92,0.00024718,2]
[320232000,1711222246065,-500.0,0.00024718,2]
[320232002,1711222246074,-1864.36155627,0.00024718,2]
[320233654,1711223311827,797.76,0.0002066,2]
[320233655,1711223317678,500.68196539,0.000189,2]
[320233657,1711223400690,155.00620025,0.000189,2]
[320233658,1711223416754,155.00620025,0.000189,2]
[320233659,1711223420000,313.08414454,0.000189,2]
[320233660,1711223427220,18197.04854381,0.000189,2]
[320233661,1711223427250,860.80439863,0.000189,2]
[320233690,1711223432071,-931.26926936,0.00023592,2]
[320233692,1711223432082,-214.6895479,0.00023593,2]
[320233694,1711223432093,-16416.13862411,0.00023598,2]
[320233696,1711223432104,-1477.77219239,0.00023598,2]
[320233698,1711223432114,-309.8295945,0.00023709,2]
[320233700,1711223432123,-500.68196539,0.000239,2]
[320233702,1711223432132,-162.38966315,0.00024557,2]
[320233704,1711223432141,-67.90168876,0.00024618,2]
[320233706,1711223432153,-10348.60309355,0.00024618,2]
[320233709,1711223432172,-65302.25410462,0.00024618,2]
[320234146,1711223436539,155.00620025,0.000189,2]
[320234228,1711223437677,688.17640046,0.000189,2]
[320234263,1711223437995,313.08414454,0.000189,2]
[320234276,1711223438103,-991.88931624,0.00024618,2]
[320234497,1711223440203,-980.62679429,0.00024618,2]
[320234549,1711223440678,155.00620025,0.000189,2]
[320234862,1711223445111,19057.85294244,0.000189,2]
[320234873,1711223446402,-214.6895479,0.00024617,2]
[320234874,1711223446412,-196.93469088,0.00024617,2]
[320234875,1711223446421,-10951.35909536,0.00024618,2]
[320235005,1711223452475,156.95492437,0.000189,2]
[320235007,1711223456079,313.08414454,0.000189,2]
[320235008,1711223457659,688.17640046,0.000189,2]
[320235009,1711223462686,307.80064799,0.000189,2]
[320235011,1711223469119,7112.38756596,0.000189,2]
[320235012,1711223474000,332.4408146,0.000189,2]
[320235013,1711223475672,688.17640046,0.000189,2]
[320235020,1711223497621,688.17640046,0.000189,2]
[320235021,1711223519619,688.17640046,0.000189,2]
[320235023,1711223535655,688.17640046,0.000189,2]
[320235025,1711223553625,688.17640046,0.000189,2]
[320235026,1711223575619,304.65853103,0.000189,2]
[320235033,1711223682951,-2854.0,0.00021,2]
[320235036,1711223752886,-931.26926936,0.00020998,2]
[320235037,1711223752911,-210.22465226,0.00020999,2]
[320235038,1711223752932,-6.56331744,0.00021,2]
[320235039,1711223752953,-1124.94276094,0.00021,2]
[320235041,1711223821447,-214.6895479,0.00020999,2]
[320235042,1711223821469,-1920.86081365,0.00020999,2]
[320235043,1711223821489,-592.44963845,0.00021,2]
[320235044,1711223955670,-931.26926936,0.00020999,2]
[320235045,1711223955690,-214.6895479,0.00020999,2]
[320235046,1711223955711,-373.98695015,0.00021,2]
[320235047,1711223955732,-5031.05423259,0.00021,2]
[320235052,1711224089607,-931.26926936,0.00020999,2]
[320235053,1711224089627,-1796.73073064,0.00021,2]
[320235060,1711224281529,-931.26926936,0.00020994,2]
[320235061,1711224281549,-214.6895479,0.00020995,2]
[320235062,1711224281569,-625.59471663,0.00020996,2]
[320235063,1711224281596,-294.6486189,0.00021,2]
[320235064,1711224281616,-11975.79784721,0.00021327,2]
[320235102,1711224523260,273.19156134,0.00019227,2]
[320235149,1711224632183,-931.26926936,0.00021208,2]
[320235150,1711224632193,-214.6895479,0.00021209,2]
[320235151,1711224632202,-325.93484737,0.0002121,2]
[320235152,1711224632212,-231.64464,0.00021215,2]
[320235153,1711224632221,-614.57420899,0.00021327,2]
[320235154,1711224632230,-2091.37934954,0.00021327,2]
[320235156,1711224632241,-300.0,0.00021515,2]
[320235157,1711224632251,-2329.90813684,0.00021516,2]
[320235158,1711224632268,-13120.37940693,0.00021516,2]
[320235160,1711224632280,-983.9624799,0.00021516,2]
[320235265,1711224638191,-5051.88934753,0.00021516,2]
[320235267,1711224638200,-1106.36004939,0.0002242,2]
[320235269,1711224638209,-559.74068277,0.0002242,2]
[320235271,1711224638218,-535.03325412,0.0002242,2]
[320235273,1711224638227,-435.27402694,0.00022421,2]
[320235275,1711224638236,-2789.17679533,0.00022421,2]
[320235276,1711224638247,-1571.87011311,0.0002288,2]
[320235280,1711224638260,-149.7903621,0.0002288,2]
[320235282,1711224638268,-318.0,0.00023666,2]
[320235284,1711224638277,-153.0,0.00024078,2]
[320235285,1711224638286,-153.0,0.000241,2]
[320235287,1711224638295,-273.19156134,0.00024227,2]
[320235289,1711224638305,-7378.41590781,0.000245,7]
[320235291,1711224638314,-153.0,0.000245,2]
[320235293,1711224638323,-153.0,0.000245,2]
[320235295,1711224638332,-153.0,0.000245,2]
[320235297,1711224638341,-153.0,0.000245,2]
[320235299,1711224638350,-153.0,0.000245,2]
[320235301,1711224638360,-156.47973414,0.00024513,2]
[320235303,1711224638368,-28412.08064143,0.00024557,2]
[320235305,1711224638377,-291.20427432,0.00024613,2]
[320235306,1711224638386,-305.19507696,0.00024614,2]
[320235308,1711224638395,-12913.01122029,0.00024615,2]
[320236187,1711224646520,-25460.43955185,0.00024615,2]
[320236207,1711224646701,-557.62454138,0.00024615,2]
[320236209,1711224646710,-500.0,0.00024657,2]
[320236211,1711224646720,-500.0,0.00024657,2]
[320236213,1711224646729,-151.0,0.00024657,2]
[320236215,1711224646739,-301.59496105,0.00024657,2]
[320236217,1711224646749,-500.0,0.00024657,2]
[320236219,1711224646758,-514.62,0.00024657,2]
[320236221,1711224646767,-500.0,0.00024657,2]
[320236223,1711224646776,-500.0,0.00024657,2]
[320236225,1711224646785,-500.0,0.00024657,2]
[320236227,1711224646794,-500.64547765,0.00024657,2]
[320236229,1711224646803,-500.0,0.00024657,2]
[320236231,1711224646812,-1025.27,0.00024657,2]
[320236233,1711224646820,-500.0,0.00024657,2]
[320236235,1711224646829,-500.0,0.00024657,2]
[320236237,1711224646838,-500.0,0.00024657,2]
[320236239,1711224646847,-670.97,0.00024657,2]
[320236241,1711224646856,-567.30309527,0.00024657,2]
[320236243,1711224646865,-1041.54,0.00024657,2]
[320236245,1711224646874,-509.20499603,0.00024657,2]
[320236247,1711224646882,-151.0,0.00024657,2]
[320236249,1711224646891,-151.0,0.00024657,2]
[320236251,1711224646900,-500.0,0.00024657,2]
[320236253,1711224646908,-502.54504713,0.00024657,2]
[320236255,1711224646916,-1080.02,0.00024657,2]
[320236257,1711224646925,-500.0,0.00024657,2]
[320236259,1711224646934,-151.0,0.00024657,2]
[320236261,1711224646943,-500.2925399,0.00024657,2]
[320236263,1711224646952,-596.09970075,0.00024657,2]
[320236265,1711224646961,-500.0,0.00024657,2]
[320236267,1711224646970,-500.0,0.00024657,2]
[320236269,1711224646979,-500.0,0.00024657,2]
[320236271,1711224646988,-503.9138211,0.00024657,2]
[320236273,1711224646997,-1597.62,0.00024657,2]
[320236275,1711224647006,-507.88086065,0.00024657,2]
[320236277,1711224647015,-500.0,0.00024657,2]
[320236279,1711224647024,-502.47328688,0.00024657,2]
[320236281,1711224647033,-500.0,0.00024657,2]
[320236283,1711224647042,-500.0,0.00024657,2]
[320236285,1711224647051,-500.0,0.00024657,2]
[320236287,1711224647059,-212.32033757,0.00024657,2]
[320236289,1711224647068,-502.50606416,0.00024657,2]
[320236291,1711224647077,-627.92,0.00024657,2]
[320236293,1711224647087,-500.0,0.00024657,2]
[320236295,1711224647096,-500.0,0.00024657,2]
[320236297,1711224647105,-500.0,0.00024657,2]
[320236299,1711224647114,-500.0,0.00024657,2]
[320236300,1711224647124,-500.61328218,0.00024657,2]
[320236303,1711224647134,-500.0,0.00024657,2]
[320236305,1711224647143,-501.75734174,0.00024657,2]
[320236306,1711224647152,-500.0,0.00024657,2]
[320236308,1711224647161,-500.0,0.00024657,2]
[320236310,1711224647172,-500.0,0.00024657,2]
[320236312,1711224647181,-500.0,0.00024657,2]
[320236315,1711224647191,-504.98731733,0.00024657,2]
[320236316,1711224647200,-500.0,0.00024657,2]
[320236318,1711224647210,-500.0,0.00024657,2]
[320236321,1711224647219,-500.0,0.00024657,2]
[320236322,1711224647228,-585.42312045,0.00024657,2]
[320236324,1711224647237,-501.05849995,0.00024657,2]
[320236326,1711224647247,-500.0,0.00024657,2]
[320236328,1711224647257,-500.0,0.00024657,2]
[320236331,1711224647267,-500.0,0.00024657,2]
[320236332,1711224647276,-500.0,0.00024657,2]
[320236335,1711224647286,-500.0,0.00024657,2]
[320236336,1711224647295,-500.0,0.00024657,2]
[320236339,1711224647304,-501.51752135,0.00024657,2]
[320236341,1711224647313,-502.41418629,0.00024657,2]
[320236343,1711224647323,-500.0,0.00024657,2]
[320236345,1711224647332,-500.0,0.00024657,2]
[320236346,1711224647342,-500.68823948,0.00024657,2]
[320236349,1711224647354,-500.0,0.00024657,2]
[320236350,1711224647364,-270.99620518,0.00024657,2]
[320236352,1711224647373,-500.0,0.00024657,2]
[320236354,1711224647383,-500.0,0.00024657,2]
[320236356,1711224647392,-231.94969233,0.00024657,2]
[320236358,1711224647403,-500.0,0.00024657,2]
[320236359,1711224647413,-500.0,0.00024657,2]
[320236360,1711224647423,-500.0,0.00024657,2]
[320236361,1711224647437,-500.26313897,0.00024657,2]
[320236362,1711224647446,-500.0,0.00024657,2]
[320236363,1711224647455,-500.0,0.00024657,2]
[320236364,1711224647464,-500.32864639,0.00024657,2]
[320236365,1711224647474,-500.0,0.00024657,2]
[320236366,1711224647484,-500.0,0.00024657,2]
[320236367,1711224647495,-251.16922573,0.00024657,2]
[320236368,1711224647504,-500.0,0.00024657,2]
[320236369,1711224647514,-501.96818515,0.00024657,2]
[320236370,1711224647524,-500.0,0.00024657,2]
[320236371,1711224647534,-151.0,0.00024657,2]
[320236372,1711224647543,-503.07715477,0.00024657,2]
[320236373,1711224647553,-500.0,0.00024657,2]
[320236374,1711224647562,-500.0,0.00024657,2]
[320236375,1711224647571,-500.0,0.00024657,2]
[320236376,1711224647580,-1331.54,0.00024657,2]
[320236377,1711224647590,-322.24676841,0.00024657,2]
[320236378,1711224647599,-254.7284484,0.00024657,2]
[320236379,1711224647608,-500.0,0.00024657,2]
[320236380,1711224647617,-500.0,0.00024657,2]
[320236381,1711224647626,-1191.38,0.00024657,2]
[320236382,1711224647635,-500.0,0.00024657,2]
[320236383,1711224647644,-501.48685199,0.00024657,2]
[320236384,1711224647653,-552.62124767,0.00024657,2]
[320236385,1711224647662,-500.0,0.00024657,2]
[320236386,1711224647671,-500.0,0.00024657,2]
[320236387,1711224647680,-151.0,0.00024657,2]
[320236388,1711224647689,-500.0,0.00024657,2]
[320236389,1711224647699,-500.0,0.00024657,2]
[320236390,1711224647707,-504.62540441,0.00024657,2]
[320236392,1711224647716,-151.0,0.00024657,2]
[320236393,1711224647725,-500.0,0.00024657,2]
[320236394,1711224647734,-12841.64,0.00024657,2]
[320236396,1711224647744,-500.0,0.00024657,2]
[320236398,1711224647753,-502.05710431,0.00024657,2]
[320236400,1711224647762,-10238.04,0.00024657,2]
[320236402,1711224647771,-500.0,0.00024657,2]
[320236404,1711224647780,-500.0,0.00024657,2]
[320236406,1711224647789,-1179.47,0.00024657,2]
[320236408,1711224647798,-5472.29,0.00024657,2]
[320236410,1711224647807,-622.02547256,0.00024657,2]
[320236412,1711224647816,-500.0,0.00024657,2]
[320236414,1711224647825,-500.0,0.00024657,2]
[320236416,1711224647834,-500.0,0.00024657,2]
[320236418,1711224647843,-500.0,0.00024657,2]